bitfinex-derivatives/quotes_BTCF0:USTF0_20251028
["timestamp","ask_amount","ask_price","bid_price","bid_amount"]
[1761625146899,0.004,113910.0,113900.0,0.64194516]
[1761625147102,0.004,113910.0,113900.0,0.5314577]
[1761625152391,0.004,113910.0,113900.0,0.37882347]
[1761625152598,0.004,113910.0,113900.0,0.5314577]
[1761625152903,0.04755,113910.0,113900.0,0.37882347]
[1761625153912,0.02613,113910.0,113900.0,0.37882347]
[1761625156316,0.004,113910.0,113900.0,0.37882347]
[1761625156615,0.004,113910.0,113900.0,0.29982433]
[1761625156816,0.1313349,113920.0,113910.0,0.1475622]
[1761625157009,0.1313349,113920.0,113910.0,0.37917818]
[1761625157714,0.1313349,113920.0,113910.0,0.53181241]
[1761625158914,0.1343349,113920.0,113910.0,0.37917818]
[1761625160720,0.1343349,113920.0,113910.0,0.53181241]
[1761625167424,0.1343349,113920.0,113910.0,0.22654395]
[1761625167628,0.1343349,113920.0,113910.0,0.53181241]
[1761625168223,0.1343349,113920.0,113910.0,0.59500302]
[1761625168423,0.1343349,113920.0,113910.0,0.36338704]
[1761625168612,0.1482649,113920.0,113910.0,0.36338704]
[1761625172228,0.1482649,113920.0,113910.0,0.30019643]
[1761625174926,0.1482649,113920.0,113910.0,0.10908843]
[1761625175226,0.7482649,113920.0,113910.0,0.10908843]
[1761625176026,0.30089913,113920.0,113910.0,0.06320843]
[1761625176525,0.1482649,113920.0,113910.0,0.06320843]
[1761625176720,0.1465222,113910.0,113900.0,0.10799843]
[1761625178428,0.15524847,113910.0,113900.0,0.10899843]
[1761625179631,0.15524847,113910.0,113900.0,0.04579]
[1761625180230,0.15524847,113910.0,113900.0,0.02276]
[1761625180527,0.15524847,113910.0,113900.0,0.001]
[1761625181429,0.1465222,113910.0,113900.0,0.001]
[1761625181631,0.1465222,113910.0,113900.0,0.04579]
[1761625181828,0.1465222,113910.0,113900.0,0.04479]
[1761625182036,0.1475222,113910.0,113900.0,0.04479]
[1761625184834,0.1475222,113910.0,113900.0,0.19742423]
[1761625185533,0.7475222,113910.0,113900.0,0.19742423]
[1761625185733,0.1475222,113910.0,113900.0,0.36312718]
[1761625186328,0.1335922,113910.0,113900.0,0.36312718]
[1761625186726,0.1475222,113910.0,113900.0,0.36312718]
[1761625187128,0.1335922,113910.0,113900.0,0.45092708]
[1761625192538,0.1335922,113910.0,113900.0,0.36312718]
[1761625193136,0.1335922,113910.0,113900.0,0.45092708]
[1761625199445,0.1463622,113910.0,113900.0,0.43498637]
[1761625199645,0.1463622,113910.0,113900.0,0.36312718]
[1761625200648,0.29903079,113910.0,113900.0,0.19745859]
[1761625201147,0.1463622,113910.0,113900.0,0.19745859]
[1761625201647,0.1456299,113900.0,113890.0,0.10795843]
[1761625201847,0.1456299,113900.0,113890.0,0.26062702]
[1761625203040,0.29829849,113900.0,113890.0,0.26062702]
[1761625203239,0.29829849,113900.0,113890.0,0.10795843]
[1761625203441,0.29829849,113900.0,113890.0,0.19741859]
[1761625203641,0.1456299,113900.0,113890.0,0.19741859]
[1761625204047,0.29829849,113900.0,113890.0,0.19841859]
[1761625204349,0.1456376,113890.0,113880.0,0.06320843]
[1761625204550,0.1456453,113880.0,113870.0,0.1975306]
[1761625204848,0.29831389,113880.0,113870.0,0.1975306]
[1761625205446,0.29831389,113880.0,113870.0,0.2112606]
[1761625205641,0.1466453,113880.0,113870.0,0.2112606]
[1761625206151,0.1338753,113880.0,113870.0,0.36229203]
[1761625206339,0.0888153,113880.0,113870.0,0.51496062]
[1761625206941,0.1334553,113880.0,113870.0,0.42713762]
[1761625207952,0.1324553,113880.0,113870.0,0.27446903]
[1761625208452,0.1344553,113880.0,113870.0,0.27446903]
[1761625212953,0.1344553,113880.0,113870.0,0.36229203]
[1761625213251,0.1344553,113880.0,113870.0,0.51496062]
[1761625214054,0.0898153,113880.0,113870.0,0.51496062]
[1761625214246,0.1328553,113880.0,113870.0,0.51496062]
[1761625216952,0.1328553,113880.0,113870.0,0.20962344]
[1761625217255,0.1328553,113880.0,113870.0,0.51496062]
[1761625218952,0.1328553,113880.0,113870.0,0.20962344]
[1761625219253,0.1456353,113880.0,113870.0,0.27446903]
[1761625219552,0.1456353,113880.0,113870.0,0.26073903]
[1761625220153,0.1456353,113880.0,113870.0,0.27382903]
[1761625221050,0.1456353,113880.0,113870.0,0.36165203]
[1761625222950,0.1328553,113880.0,113870.0,0.36165203]
[1761625223454,0.1328553,113880.0,113870.0,0.51432062]
[1761625224553,0.1328553,113880.0,113870.0,0.36165203]
[1761625225455,0.1328553,113880.0,113870.0,0.51432062]
[1761625226451,0.1109253,113880.0,113870.0,0.51432062]
[1761625226658,0.1328553,113880.0,113870.0,0.51432062]
[1761625227550,0.1308553,113880.0,113870.0,0.51432062]
[1761625231362,0.1089253,113880.0,113870.0,0.51432062]
[1761625231556,0.1309853,113880.0,113870.0,0.51432062]
[1761625232853,0.1329853,113880.0,113870.0,0.51432062]
[1761625233462,0.1309853,113880.0,113870.0,0.45111219]
[1761625234356,0.1309853,113880.0,113870.0,0.53009394]
[1761625234562,0.1089253,113880.0,113870.0,0.53009394]
[1761625234765,0.1309853,113880.0,113870.0,0.53009394]
[1761625236056,0.1309853,113880.0,113870.0,0.45111219]
[1761625236362,0.1309853,113880.0,113870.0,0.53009394]
[1761625240158,0.1092199,113900.0,113890.0,0.0878076]
[1761625240358,0.1312782,113910.0,113900.0,0.03501]
[1761625240558,0.1312782,113910.0,113900.0,0.51261662]
[1761625240949,0.1312782,113910.0,113900.0,0.59139548]
[1761625241154,0.1312701,113920.0,113910.0,0.1440692]
[1761625241355,0.1312701,113920.0,113910.0,0.44940638]
[1761625241863,0.1312701,113920.0,113910.0,0.29674069]
[1761625243080,0.131252,113940.0,113930.0,0.1440567]
[1761625243267,0.131252,113940.0,113930.0,0.29672529]
[1761625244365,0.132252,113940.0,113930.0,0.29672529]
[1761625245561,0.139252,113940.0,113930.0,0.29772529]
[1761625245763,0.138252,113940.0,113930.0,0.29772529]
[1761625246273,0.131252,113940.0,113930.0,0.29672529]
[1761625246468,0.133252,113940.0,113930.0,0.29672529]
[1761625246869,0.111189,113940.0,113930.0,0.44939388]
[1761625247369,0.133249,113940.0,113930.0,0.1440567]
[1761625247567,0.133249,113940.0,113930.0,0.44939388]
[1761625247767,0.133249,113940.0,113930.0,0.29661308]
[1761625248562,0.111189,113940.0,113930.0,0.29661308]
[1761625249469,0.133249,113940.0,113930.0,0.29661308]
[1761625252180,0.133249,113940.0,113930.0,0.04278]
[1761625252181,0.146929,113940.0,113930.0,0.04278]
[1761625252375,0.29948538,113940.0,113930.0,0.04278]
[1761625252673,0.146929,113940.0,113930.0,0.04278]
[1761625253069,0.146929,113940.0,113930.0,0.1440568]
[1761625253268,0.146929,113940.0,113930.0,0.29661318]
[1761625257477,0.146929,113940.0,113930.0,0.20883638]
[1761625257665,0.146929,113940.0,113930.0,0.05628]
[1761625257979,0.146929,113940.0,113930.0,0.04278]
[1761625260577,0.0877768,113930.0,113920.0,0.04439]
[1761625260778,0.29838318,113930.0,113920.0,0.04439]
[1761625261079,0.1458422,113910.0,113900.0,0.46005571]
[1761625261275,0.1458422,113910.0,113900.0,0.13670553]
[1761625261481,0.1458422,113910.0,113900.0,0.22450543]
[1761625261680,0.1458422,113910.0,113900.0,0.12781803]
[1761625262180,0.1458422,113910.0,113900.0,0.20211793]
[1761625262673,0.1458422,113910.0,113900.0,0.20311793]
[1761625262980,0.1458422,113910.0,113900.0,0.22087793]
[1761625263276,0.1458422,113910.0,113900.0,0.21587793]
[1761625263482,0.1478422,113910.0,113900.0,0.21587793]
[1761625263982,0.1478422,113910.0,113900.0,0.12807803]
[1761625264182,0.1478422,113910.0,113900.0,0.28063441]
[1761625264378,0.1478422,113910.0,113900.0,0.36743421]
[1761625264580,0.1478422,113910.0,113900.0,0.27963441]
[1761625264773,0.1478422,113910.0,113900.0,0.11431803]
[1761625266177,0.1478422,113910.0,113900.0,0.20211793]
[1761625266382,0.1478422,113910.0,113900.0,0.21565793]
[1761625267480,0.1478422,113910.0,113900.0,0.28041441]
[1761625267683,0.1478422,113910.0,113900.0,0.36821431]
[1761625268880,0.0897922,113910.0,113900.0,0.36821431]
[1761625269387,0.1342422,113910.0,113900.0,0.36821431]
[1761625269875,0.0897922,113910.0,113900.0,0.36821431]
[1761625270075,0.002,113910.0,113900.0,0.58397023]
[1761625270277,0.002,113910.0,113900.0,0.43141385]
[1761625270684,0.1127822,113910.0,113900.0,0.43141385]
[1761625271685,0.1107822,113910.0,113900.0,0.43141385]
[1761625272086,0.0877922,113910.0,113900.0,0.43141385]
[1761625272383,0.1107822,113910.0,113900.0,0.43141385]
[1761625273278,0.0877922,113910.0,113900.0,0.43141385]
[1761625273987,0.1107822,113910.0,113900.0,0.43141385]
[1761625275088,0.1107822,113910.0,113900.0,1.03141385]
[1761625275589,0.0877922,113910.0,113900.0,1.03141385]
[1761625275882,0.1107816,113920.0,113910.0,0.1013296]
[1761625276088,0.1322416,113920.0,113910.0,0.29840598]
[1761625276888,0.1107816,113920.0,113910.0,0.29840598]
[1761625277089,0.0877916,113920.0,113910.0,0.45096236]
[1761625277594,0.0897916,113920.0,113910.0,0.45096236]
[1761625278686,0.0877916,113920.0,113910.0,0.45096236]
[1761625279593,0.0877916,113920.0,113910.0,0.29840598]
[1761625279891,0.1322416,113920.0,113910.0,0.29840598]
[1761625283094,0.1322416,113920.0,113910.0,0.36160552]
[1761625284692,0.29846798,113920.0,113910.0,0.02326]
[1761625284990,0.1459121,113910.0,113900.0,0.41800005]
[1761625285690,0.1459121,113910.0,113900.0,0.43154005]
[1761625285893,0.1322421,113910.0,113900.0,0.43154005]
[1761625286794,0.1342421,113910.0,113900.0,0.43154005]
[1761625288497,0.1342421,113910.0,113900.0,0.34374395]
[1761625288801,0.1477121,113910.0,113900.0,0.34374395]
[1761625289600,0.1477121,113910.0,113900.0,0.26027592]
[1761625289804,0.1477121,113910.0,113900.0,0.10771954]
[1761625290096,0.1477121,113910.0,113900.0,0.20850944]
[1761625291002,0.1477121,113910.0,113900.0,0.36106582]
[1761625292098,0.1477121,113910.0,113900.0,0.27326592]
[1761625296506,0.1342421,113910.0,113900.0,0.21006638]
[1761625297400,0.1342421,113910.0,113900.0,0.29786628]
[1761625297596,0.1127821,113910.0,113900.0,0.29786628]
[1761625297903,0.1122621,113910.0,113900.0,0.29786628]
[1761625298098,0.1333521,113910.0,113900.0,0.29786628]
[1761625299113,0.0897921,113910.0,113900.0,0.45042266]
[1761625299408,0.0877921,113910.0,113900.0,0.29786628]
[1761625301810,0.0877768,113930.0,113920.0,0.01299]
[1761625302109,0.1102313,113950.0,113940.0,0.01299]
[1761625302412,0.04356,113950.0,113940.0,0.35954565]
[1761625302804,0.0877587,113960.0,113940.0,0.35954565]
[1761625303004,0.1313187,113960.0,113950.0,0.20867638]
[1761625303714,0.1313187,113960.0,113950.0,0.29643768]
[1761625304211,0.1313187,113960.0,113950.0,0.30533716]
[1761625304412,0.1403187,113960.0,113950.0,0.30633716]
[1761625305310,0.05256,113960.0,113950.0,0.30633716]
[1761625305506,0.05356,113960.0,113950.0,0.30633716]
[1761625306103,0.01,113960.0,113950.0,0.30633716]
[1761625306510,0.01,113960.0,113950.0,0.36943743]
[1761625307717,0.01,113960.0,113950.0,0.52186985]
[1761625309121,0.01,113960.0,113950.0,0.45876958]
[1761625314627,0.307278,113960.0,113950.0,0.15378078]
[1761625314823,0.06703,113960.0,113950.0,0.30627518]
[1761625315023,0.05356,113960.0,113950.0,0.30627518]
[1761625316634,0.1413136,113960.0,113950.0,0.30627518]
[1761625317928,0.1413136,113960.0,113950.0,0.45876958]
[1761625317929,0.05356,113960.0,113950.0,0.45876958]
[1761625318127,0.01,113960.0,113950.0,0.45876958]
[1761625320528,0.1012048,113990.0,113970.0,0.1441859]
[1761625320529,0.1332938,113980.0,113970.0,0.1441859]
[1761625320734,0.1332938,113980.0,113970.0,0.2966803]
[1761625321536,0.1332938,113980.0,113970.0,0.2089344]
[1761625321834,0.1332938,113980.0,113970.0,0.04309]
[1761625321835,0.1489438,113980.0,113970.0,0.04309]
[1761625322034,0.3014382,113980.0,113970.0,0.1955844]
[1761625322234,0.3134382,113980.0,113970.0,0.04409]
[1761625322432,0.1589438,113980.0,113970.0,0.1965844]
[1761625322634,0.3124382,113980.0,113970.0,0.04409]
[1761625322934,0.3124382,113980.0,113970.0,0.1965844]
[1761625323529,0.3124382,113980.0,113970.0,0.2843304]
[1761625324033,0.1599438,113980.0,113970.0,0.2976804]
[1761625324335,0.3124382,113980.0,113970.0,0.1965844]
[1761625324538,0.1462938,113980.0,113970.0,0.2976804]
[1761625326937,0.1239338,113980.0,113970.0,0.4501748]
[1761625327338,0.1459138,113980.0,113970.0,0.2976804]
[1761625330538,0.1227238,113980.0,113970.0,0.2976804]
[1761625330838,0.1227238,113980.0,113970.0,0.4501748]
[1761625330839,0.013,113980.0,113970.0,0.4501748]
[1761625331342,0.013,113980.0,113970.0,0.51327507]
[1761625331929,0.1323674,114000.0,113990.0,0.05797]
[1761625332130,0.1323674,114000.0,113990.0,0.2104644]
[1761625332325,0.1452774,114000.0,113990.0,0.2104644]
[1761625332526,0.2977718,114000.0,113990.0,0.2104644]
[1761625333638,0.1462774,114000.0,113990.0,0.2104644]
[1761625334040,0.1462774,114000.0,113990.0,0.298195]
[1761625334243,0.1492774,114000.0,113990.0,0.298195]
[1761625334437,0.1492774,114000.0,113990.0,0.30697829]
[1761625335239,0.1492774,114000.0,113990.0,0.298195]
[1761625335440,0.3017718,114000.0,113990.0,0.284855]
[1761625336644,0.3017718,114000.0,113990.0,0.298195]
[1761625339846,0.1492774,114000.0,113990.0,0.298195]
[1761625340052,0.3017718,114000.0,113990.0,0.298195]
[1761625341143,0.3017718,114000.0,113990.0,0.1971244]
[1761625341645,0.4542662,114000.0,113990.0,0.04463]
[1761625342450,0.3017718,114000.0,113990.0,0.04463]
[1761625342748,0.5419953,114000.0,113980.0,0.1749044]
[1761625342944,0.5419953,114000.0,113970.0,0.1323746]
[1761625342945,0.0877383,113980.0,113970.0,0.1323746]
[1761625343145,0.2977827,113980.0,113970.0,0.284869]
[1761625343348,0.2977827,113980.0,113970.0,0.1971244]
[1761625343869,0.2977827,113980.0,113970.0,0.04463]
[1761625344057,0.1452883,113980.0,113970.0,0.1971244]
[1761625344262,0.2977827,113980.0,113970.0,0.1981244]
[1761625344756,0.1333691,114000.0,113990.0,0.05797]
[1761625345059,0.1462791,114000.0,113990.0,0.1971244]
[1761625345358,0.1462791,114000.0,113990.0,0.04463]
[1761625345557,0.1462791,114000.0,113990.0,0.1971244]
[1761625345861,0.1452791,114000.0,113990.0,0.1971244]
[1761625346355,0.1452791,114000.0,113990.0,0.2981949]
[1761625346751,0.1462791,114000.0,113990.0,0.2981949]
[1761625346958,0.1492791,114000.0,113990.0,0.2981949]
[1761625348163,0.17129766,114000.0,113990.0,0.2981949]
[1761625348659,0.1492791,114000.0,113990.0,0.2981949]
[1761625349056,0.17130327,114000.0,113990.0,0.2981949]
[1761625349965,0.17130327,114000.0,113990.0,0.30691646]
[1761625350962,0.17140327,114000.0,113990.0,0.306847]
[1761625351262,0.17140622,114000.0,113990.0,0.2981949]
[1761625352069,0.1493791,114000.0,113990.0,0.2981949]
[1761625352367,0.1714089,114000.0,113990.0,0.1971244]
[1761625352576,0.4763977,114000.0,113990.0,0.04463]
[1761625352769,0.3239033,114000.0,113990.0,0.04463]
[1761625352964,0.4763977,114000.0,113990.0,0.04463]
[1761625353169,0.1453708,113990.0,113980.0,0.1317085]
[1761625353365,0.0877385,113980.0,113970.0,0.16418497]
[1761625353572,0.2978729,113980.0,113970.0,0.04397]
[1761625353776,0.4503673,113980.0,113970.0,0.04397]
[1761625354177,0.1453861,113970.0,113960.0,0.2975616]
[1761625354378,0.2978805,113970.0,113960.0,0.2975616]
[1761625355576,0.2978805,113970.0,113960.0,0.2098144]
[1761625355882,0.2978805,113970.0,113960.0,0.04397]
[1761625356180,0.2978805,113970.0,113960.0,0.04697]
[1761625356366,0.2978805,113970.0,113960.0,0.1994644]
[1761625357181,0.2978805,113970.0,113960.0,0.2872182]
[1761625358482,0.2978805,113970.0,113960.0,0.1994644]
[1761625360788,0.2978805,113970.0,113960.0,0.2872182]
[1761625361291,0.2978805,113970.0,113960.0,0.1994644]
[1761625363186,0.1323761,113970.0,113960.0,0.4525726]
[1761625363378,0.2978805,113970.0,113960.0,0.1994644]
[1761625365889,0.1453861,113970.0,113960.0,0.1994644]
[1761625366489,0.1453861,113970.0,113960.0,0.2872182]
[1761625366687,0.1453861,113970.0,113960.0,0.1347238]
[1761625366888,0.1453861,113970.0,113960.0,0.4397126]
[1761625367288,0.1453861,113970.0,113960.0,0.3648188]
[1761625367590,0.1323761,113970.0,113960.0,0.4525726]
[1761625369689,0.1323761,113970.0,113960.0,0.30006768]
[1761625371294,0.1323761,113970.0,113960.0,0.36316795]
[1761625371789,0.1097961,113970.0,113960.0,0.36316795]
[1761625371996,0.1323743,113980.0,113970.0,0.1445735]
[1761625372195,0.1323743,113980.0,113970.0,0.51264153]
[1761625372793,0.1323743,113980.0,113970.0,0.36015765]
[1761625373400,0.1323743,113980.0,113970.0,0.36115765]
[1761625373795,0.1323743,113980.0,113970.0,0.51364153]
[1761625373995,0.1097943,113980.0,113970.0,0.20867377]
[1761625374299,0.1323743,113980.0,113970.0,0.36115765]
[1761625377702,0.1323743,113980.0,113970.0,0.12093027]
[1761625377892,0.1453843,113980.0,113970.0,0.04497]
[1761625379702,0.29786818,113980.0,113970.0,0.02246]
[1761625380099,0.29786818,113980.0,113970.0,0.0438]
[1761625380500,0.1453843,113980.0,113970.0,0.0438]
[1761625382595,0.29786818,113980.0,113970.0,0.001]
[1761625382798,0.32786818,113980.0,113970.0,0.001]
[1761625383204,0.34968001,113980.0,113970.0,0.001]
[1761625384104,0.35068001,113980.0,113970.0,0.001]
[1761625384399,0.1323436,113960.0,113950.0,0.36062065]
[1761625384800,0.1323436,113960.0,113950.0,0.4919876]
[1761625385801,0.1451036,113960.0,113950.0,0.10752027]
[1761625386108,0.1451114,113950.0,113940.0,0.1321891]
[1761625386405,0.1451114,113950.0,113940.0,0.1952096]
[1761625387091,0.1451114,113950.0,113940.0,0.2084296]
[1761625387292,0.1323514,113950.0,113940.0,0.36591348]
[1761625387491,0.1323514,113950.0,113940.0,0.37470357]
[1761625388005,0.0877614,113950.0,113940.0,0.46416695]
[1761625388200,0.1092514,113950.0,113940.0,0.46416695]
[1761625388599,0.1313614,113950.0,113940.0,0.46416695]
[1761625389702,0.1092514,113950.0,113940.0,0.46416695]
[1761625390000,0.0877614,113950.0,113940.0,0.54304229]
[1761625390705,0.0877614,113950.0,113940.0,0.52717366]
[1761625393211,0.0877608,113960.0,113950.0,0.1009796]
[1761625393406,0.0877608,113960.0,113950.0,0.29693348]
[1761625393612,0.1092508,113960.0,113950.0,0.29693348]
[1761625393911,0.1313608,113960.0,113950.0,0.29693348]
[1761625394509,0.0877608,113960.0,113950.0,0.29993348]
[1761625395114,0.1313482,113970.0,113960.0,0.1444436]
[1761625395315,0.1313482,113970.0,113960.0,0.29692748]
[1761625395699,0.1313482,113970.0,113960.0,0.20917388]
[1761625396213,0.1313482,113970.0,113960.0,0.21017388]
[1761625402806,0.1440982,113970.0,113960.0,0.05769]
[1761625405521,0.1440982,113970.0,113960.0,0.04447]
[1761625409914,0.16608568,113970.0,113960.0,0.04447]
[1761625416019,0.29658208,113970.0,113960.0,0.06400671]
[1761625416323,0.31857355,113970.0,113960.0,0.02316]
[1761625416517,0.31857355,113970.0,113960.0,0.001]
[1761625425823,0.1445314,113950.0,113940.0,0.12239534]
[1761625426021,0.1445314,113950.0,113940.0,0.04352]
[1761625426619,0.1445314,113950.0,113940.0,0.10668096]
[1761625427727,0.1445314,113950.0,113940.0,0.11168096]
[1761625431541,0.1445314,113950.0,113940.0,0.12068765]
[1761625431744,0.29710431,113950.0,113940.0,0.26425387]
[1761625434150,0.1445314,113950.0,113940.0,0.27753387]
[1761625434349,0.29710431,113950.0,113940.0,0.27753387]
[1761625434649,0.29710431,113950.0,113940.0,0.26425387]
[1761625441048,0.29710431,113950.0,113940.0,0.26125387]
[1761625441446,0.29710431,113950.0,113940.0,0.002]
[1761625442053,0.0877614,113950.0,113940.0,0.42708678]
[1761625442347,0.1311889,113960.0,113950.0,0.01313]
[1761625442647,0.1311889,113960.0,113950.0,0.51284818]
[1761625442648,0.0877589,113960.0,113950.0,0.51284818]
[1761625443356,0.1311815,113970.0,113960.0,0.1445294]
[1761625443546,0.1311815,113970.0,113960.0,0.44967522]
[1761625443739,0.1093415,113970.0,113960.0,0.51283618]
[1761625444949,0.0877515,113970.0,113960.0,0.51283618]
[1761625445453,0.0877515,113970.0,113960.0,0.51483618]
[1761625446148,0.1311815,113970.0,113960.0,0.51483618]
[1761625447749,0.1311815,113970.0,113960.0,0.45167522]
[1761625448149,0.1311815,113970.0,113960.0,0.51483618]
[1761625449452,0.0877515,113970.0,113960.0,0.51483618]
[1761625449657,0.1088436,113980.0,113970.0,0.1436126]
[1761625449857,0.1306636,113980.0,113970.0,0.29618551]
[1761625450158,0.1306583,113980.0,113970.0,0.30488083]
[1761625450355,0.0877383,113980.0,113970.0,0.5206147]
[1761625450557,0.0877383,113980.0,113970.0,0.36804179]
[1761625450753,0.1306557,113990.0,113980.0,0.1436044]
[1761625450954,0.1306557,113990.0,113980.0,0.44875022]
[1761625451755,0.1306557,113990.0,113980.0,0.29617731]
[1761625452161,0.1326557,113990.0,113980.0,0.29617731]
[1761625452661,0.1336557,113990.0,113980.0,0.29617731]
[1761625453365,0.1336557,113990.0,113980.0,0.20844291]
[1761625454166,0.1336557,113990.0,113980.0,0.29618151]
[1761625460965,0.28622861,113990.0,113980.0,0.29618151]
[1761625462057,0.28622861,113990.0,113980.0,0.20844291]
[1761625462262,0.29956861,113990.0,113980.0,0.20844291]
[1761625462566,0.29956861,113990.0,113980.0,0.05587]
[1761625463862,0.29956861,113990.0,113980.0,0.04245]
[1761625464659,0.01334,113970.0,113960.0,0.19336036]
[1761625464868,0.01334,113970.0,113960.0,0.04245]
[1761625464869,0.29657921,113970.0,113960.0,0.04245]
[1761625465772,0.29657921,113970.0,113960.0,0.05587]
[1761625466966,0.29657921,113970.0,113960.0,0.05787]
[1761625467370,0.29657921,113970.0,113960.0,0.04445]
[1761625469266,0.29657921,113970.0,113960.0,0.02343]
[1761625469771,0.29657921,113970.0,113960.0,0.04674]
[1761625470278,0.30528781,113970.0,113960.0,0.04674]
[1761625473084,0.37376213,113970.0,113960.0,0.04674]
[1761625475082,0.22118922,113970.0,113960.0,0.04674]
[1761625475283,0.37376213,113970.0,113960.0,0.04674]
[1761625475985,0.37376213,113970.0,113960.0,0.002]
[1761625477180,0.37376213,113970.0,113960.0,0.02506]
[1761625477386,0.37376213,113970.0,113960.0,0.04637]
[1761625478085,0.36505353,113970.0,113960.0,0.04637]
[1761625478287,0.36505353,113970.0,113960.0,0.21226291]
[1761625478987,0.36505353,113970.0,113960.0,0.04637]
[1761625479179,0.36505353,113970.0,113960.0,0.19894291]
[1761625479584,0.37396044,113970.0,113960.0,0.19894291]
[1761625479980,0.37396044,113970.0,113960.0,0.04637]
[1761625481589,0.22138753,113970.0,113960.0,0.04637]
[1761625481790,0.37396044,113970.0,113960.0,0.04637]
[1761625483092,0.36505353,113970.0,113960.0,0.04637]
[1761625484092,0.3736746,113970.0,113960.0,0.04637]
[1761625485794,0.36505353,113970.0,113960.0,0.04637]
[1761625488498,0.37374232,113970.0,113960.0,0.04637]
[1761625490700,0.36505353,113970.0,113960.0,0.04637]
[1761625491705,0.36501127,113970.0,113960.0,0.04637]
[1761625492598,0.1306663,113970.0,113960.0,0.29997445]
[1761625493298,0.1306663,113970.0,113960.0,0.36313541]
[1761625493801,0.1088463,113970.0,113960.0,0.36313541]
[1761625494202,0.1301763,113970.0,113960.0,0.36513541]
[1761625501808,0.1440663,113970.0,113960.0,0.11153096]
[1761625503512,0.1440663,113970.0,113960.0,0.19928476]
[1761625505512,0.1440663,113970.0,113960.0,0.11153096]
[1761625506512,0.1440663,113970.0,113960.0,0.19928466]
[1761625507807,0.1440663,113970.0,113960.0,0.11153096]
[1761625508015,0.29659695,113970.0,113960.0,0.02395]
[1761625508314,0.29659695,113970.0,113960.0,0.04549]
[1761625509112,0.36820848,113970.0,113960.0,0.002]
[1761625510615,0.21567783,113970.0,113960.0,0.002]
[1761625510908,0.36820848,113970.0,113960.0,0.002]
[1761625513322,0.21567783,113970.0,113960.0,0.04549]
[1761625513808,0.21567783,113970.0,113960.0,0.04349]
[1761625515018,0.21567783,113970.0,113960.0,0.05665]
[1761625518323,0.21567783,113970.0,113960.0,0.1444037]
[1761625518518,0.1301763,113970.0,113960.0,0.29693435]
[1761625518725,0.1301763,113970.0,113960.0,0.36009531]
[1761625519413,0.1088463,113970.0,113960.0,0.36009531]
[1761625520624,0.1088463,113970.0,113960.0,0.36209531]
[1761625522321,0.1314363,113970.0,113960.0,0.36209531]
[1761625523726,0.1102086,113980.0,113970.0,0.100906]
[1761625523920,0.0877386,113980.0,113970.0,0.35989744]
[1761625524925,0.1327986,113980.0,113970.0,0.35989744]
[1761625527728,0.1327986,113980.0,113970.0,0.20736679]
[1761625527925,0.1327986,113980.0,113970.0,0.35989744]
[1761625528514,0.29905925,113980.0,113970.0,0.04349]
[1761625528722,0.1327986,113980.0,113970.0,0.144966]
[1761625529826,0.1465286,113980.0,113970.0,0.144966]
[1761625533824,0.1327986,113980.0,113970.0,0.144966]
[1761625535538,0.1327986,113980.0,113970.0,0.29749665]
[1761625535741,0.1327986,113980.0,113970.0,0.144966]
[1761625538532,0.1327986,113980.0,113970.0,0.29749665]
[1761625539834,0.1327986,113980.0,113970.0,0.36046744]
[1761625540035,0.1327986,113980.0,113970.0,0.20793679]
[1761625540233,0.1327986,113980.0,113970.0,0.36046744]
[1761625549346,0.0877309,113990.0,113980.0,0.1472883]
[1761625549644,0.1106109,113990.0,113980.0,0.29981895]
[1761625549845,0.1324709,113990.0,113980.0,0.29981895]
[1761625550242,0.1324709,113990.0,113980.0,0.36278974]
[1761625551447,0.1324709,113990.0,113980.0,0.36478974]
[1761625551649,0.1334709,113990.0,113980.0,0.36478974]
[1761625552346,0.1334709,113990.0,113980.0,0.37348045]
[1761625553446,0.1334709,113990.0,113980.0,0.97348045]
[1761625553651,0.0887309,113990.0,113980.0,0.97348045]
[1761625553851,0.1116109,113990.0,113980.0,1.12580624]
[1761625554242,0.1334709,113990.0,113980.0,1.12580624]
[1761625557442,0.1334709,113990.0,113980.0,0.8209498]
[1761625557647,0.1334709,113990.0,113980.0,1.12580624]
[1761625558646,0.1334709,113990.0,113980.0,0.52580624]
[1761625560854,0.1334709,113990.0,113980.0,0.2209498]
[1761625561054,0.1334709,113990.0,113980.0,0.37337802]
[1761625564756,0.1334709,113990.0,113980.0,0.52580624]
[1761625565662,0.1116109,113990.0,113980.0,0.52580624]
[1761625565867,0.0887309,113990.0,113980.0,0.52580624]
[1761625566165,0.001,113990.0,113980.0,0.52580624]
[1761625566562,0.001,113990.0,113980.0,0.46283545]
[1761625567464,0.1328984,114010.0,114000.0,0.1446026]
[1761625567669,0.1328984,114010.0,114000.0,0.44945904]
[1761625568671,0.1338984,114010.0,114000.0,0.44945904]
[1761625569069,0.1368984,114010.0,114000.0,0.44945904]
[1761625570463,0.1149484,114010.0,114000.0,0.44945904]
[1761625570966,0.1368984,114010.0,114000.0,0.44945904]
[1761625572862,0.30287662,114010.0,114000.0,0.04317]
[1761625573857,0.1317804,113990.0,113980.0,0.38565797]
[1761625574062,0.1317804,113990.0,113980.0,0.36966036]
[1761625574258,0.1317804,113990.0,113980.0,0.50196538]
[1761625574463,0.1317804,113990.0,113980.0,0.36966036]
[1761625575073,0.1327804,113990.0,113980.0,0.36966036]
[1761625575273,0.1327804,113990.0,113980.0,0.37166036]
[1761625575968,0.29794862,113990.0,113980.0,0.12280773]
[1761625576174,0.29794862,113990.0,113980.0,0.0462]
[1761625580873,0.29794862,113990.0,113980.0,0.002]
[1761625581378,0.30686945,113990.0,113980.0,0.02517]
[1761625582470,0.30686945,113990.0,113980.0,0.002]
[1761625583580,0.30686945,113990.0,113980.0,0.02517]
[1761625585181,0.30686945,113990.0,113980.0,0.0462]
[1761625587177,0.29794862,113990.0,113980.0,0.0462]
[1761625591283,0.29794862,113990.0,113980.0,0.002]
[1761625591587,0.29794862,113990.0,113980.0,0.02502]
[1761625591789,0.29794862,113990.0,113980.0,0.04713]
[1761625603092,0.29794862,113990.0,113980.0,0.19955822]
[1761625603391,0.29794862,113990.0,113980.0,0.04713]
[1761625604896,0.1455204,113990.0,113980.0,0.19955822]
[1761625605102,0.16830435,113990.0,113980.0,0.21350822]
[1761625606095,0.32073257,113990.0,113980.0,0.21350822]
[1761625609099,0.32073257,113990.0,113980.0,0.19955822]
[1761625609902,0.32073257,113990.0,113980.0,0.04713]
[1761625610590,0.32073257,113990.0,113980.0,0.002]
[1761625610795,0.32073257,113990.0,113980.0,0.04713]
[1761625613804,0.32078189,113990.0,113980.0,0.04713]
[1761625620107,0.16830435,113990.0,113980.0,0.04713]
[1761625624205,0.32078189,113990.0,113980.0,0.002]
[1761625631904,0.1455957,113970.0,113960.0,0.11558952]
[1761625632312,0.1455957,113970.0,113960.0,0.10698701]